[Event "FIDE WCCC Open-10 2024"]
[Site "Montesilvano"]
[Date "2024.11.18"]
[Round "4.34"]
[White "Santoro, Marco Antonio"]
[Black "Meitzner, Jonathan Franz"]
[Result "0-1"]
[ECO "B30"]
[WhiteElo "1765"]
[BlackElo "1876"]
[Annotator "NA RC"]
[PlyCount "68"]
[EventDate "2024.11.18"]
[EventType "swiss"]
[EventCountry "ITA"]
[SourceTitle "playchess.com"]
[Source "ChessBase"]
[SourceQuality "1"]
[TimeControl "5400+30"]

1. e4 {[%emt 0:00:03]} c5 {[%emt 0:00:04]} 2. Nf3 {[%emt 0:00:06]} Nc6 {[%emt 0:00:14]} 3. d3 {[%emt 0:00:08]} e5 {[%emt 0:00:09]} 4. Nbd2 {[%emt 0:00:07]} d6 {[%emt 0:00:08]} 5. h3 {[%emt 0:00:08]} g6 {[%emt 0:00:08]} 6. Be2 {[%emt 0:00:08]} Bg7 {[%emt 0:00:05]} 7. c3 {[%emt 0:00:08]} Nge7 {[%emt 0:00:20]} 8. Qc2 {[%emt 0:00:08]} O-O {[%emt 0:00:13]} 9. a3 {[%emt 0:00:16]} a5 {[%emt 0:00:27]} 10. g4 {[%emt 0:00:10]} h6 {[%emt 0:00:17]} 11. Nf1 {[%emt 0:00:11]} d5 {[%emt 0:00:40]} 12. Rg1 {[%emt 0:00:20]} Be6 {[%emt 0:01:36]} 13. Ng3 {[%emt 0:00:16]} b5 {[%emt 0:00:53]} 14. Nh4 {[%emt 0:10:33]} Kh8 {[%emt 0:14:36]} 15. f3 {[%emt 0:09:06]} d4 {[%emt 0:03:44]} 16. Ng2 {[%emt 0:04:51]} c4 {[%emt 0:21:44]} 17. Kf2 {[%emt 0:05:08]} Rc8 {[%emt 0:02:57]} 18. Ne1 {[%emt 0:04:14]} Qb6 {[%emt 0:04:25]} 19. Kg2 {[%emt 0:03:41]} Rfd8 {[%emt 0:02:40]} 20. Bd2 {[%emt 0:03:32]} dxc3 {[%emt 0:07:22]} 21. bxc3 {[%emt 0:01:31]} cxd3 {[%emt 0:01:21]} 22. Bxd3 {[%emt 0:01:11]} Nd4 {[%emt 0:01:10]} 23. Qb2 {[%emt 0:02:07]} Nb3 {[%emt 0:06:10]} 24. Rd1 {[%emt 0:01:41]} Rd7 {[%emt 0:03:59]} 25. Nf1 {[%emt 0:04:46]} Rcd8 {[%emt 0:01:43]} 26. Rh1 {[%emt 0:01:36]} Rxd3 {[%emt 0:06:36]} 27. Nxd3 {[%emt 0:01:20]} Rxd3 {[%emt 0:00:12]} 28. Qc2 {[%emt 0:01:22]} Qd6 {[%emt 0:02:13]} 29. Rh2 {[%emt 0:02:02]} Bc4 {[%emt 0:01:25]} 30. Qb2 {[%emt 0:01:17]} Nc6 {[%emt 0:03:18]} 31. Kg3 {[%emt 0:00:37]} Bf6 {[%emt 0:01:43]} 32. h4 {[%emt 0:00:12]} Bd8 {[%emt 0:01:33]} 33. Kg2 {[%emt 0:01:26]} Bb6 {[%emt 0:00:30]} 34. Kg3 {[%emt 0:00:17]} Qf6 {[%emt 0:00:40]} 0-1

[Event "FIDE WCCC Open-10 2024"]
[Site "Montesilvano"]
[Date "2024.11.18"]
[Round "4.35"]
[White "Mrozowski, Nikodem"]
[Black "DAmato, Raffaele"]
[Result "1-0"]
[ECO "C02"]
[WhiteElo "1874"]
[BlackElo "1695"]
[Annotator "NA RC"]
[PlyCount "141"]
[EventDate "2024.11.18"]
[EventType "swiss"]
[EventCountry "ITA"]
[SourceTitle "playchess.com"]
[Source "ChessBase"]
[SourceQuality "1"]
[TimeControl "5400+30"]

1. e4 {[%emt 0:00:06]} e6 {[%emt 0:00:03]} 2. d4 {[%emt 0:00:05]} d5 {[%emt 0:00:01]} 3. e5 {[%emt 0:00:09]} c5 {[%emt 0:00:04]} 4. c3 {[%emt 0:00:07]} Nc6 {[%emt 0:00:07]} 5. Nf3 {[%emt 0:00:05]} Bd7 {[%emt 0:00:57]} 6. Bd3 {[%emt 0:00:46]} cxd4 {[%emt 0:01:21]} 7. cxd4 {[%emt 0:00:32]} Nge7 {[%emt 0:00:55]} 8. Nc3 {[%emt 0:00:38]} a6 {[%emt 0:01:52]} 9. O-O {[%emt 0:00:47]} Ng6 {[%emt 0:02:55]} 10. Be3 {[%emt 0:04:14]} Nb4 {[%emt 0:02:48]} 11. Bb1 {[%emt 0:00:57]} Be7 {[%emt 0:03:59]} 12. a3 {[%emt 0:01:10]} Nc6 {[%emt 0:01:05]} 13. b4 {[%emt 0:02:37]} b5 {[%emt 0:00:56]} 14. Ne1 {[%emt 0:05:41]} O-O {[%emt 0:04:38]} 15. f4 {[%emt 0:03:20]} Rc8 {[%emt 0:02:12]} 16. Ne2 {[%emt 0:00:59]} f5 {[%emt 0:02:04]} 17. exf6 {[%emt 0:04:15]} Bxf6 {[%emt 0:01:27]} 18. Nd3 {[%emt 0:03:25]} Be7 {[%emt 0:01:45]} 19. Ne5 {[%emt 0:02:10]} Ngxe5 {[%emt 0:04:16]} 20. fxe5 {[%emt 0:00:33]} Rxf1+ {[%emt 0:00:34]} 21. Qxf1 {[%emt 0:01:44]} Bg5 {[%emt 0:01:42]} 22. Nf4 {[%emt 0:04:16]} Qf8 {[%emt 0:01:24]} 23. Qd3 {[%emt 0:05:36]} Qf5 {[%emt 0:07:49]} 24. Qxf5 {[%emt 0:00:20]} exf5 {[%emt 0:00:10]} 25. Nxd5 {[%emt 0:03:08]} Bxe3+ {[%emt 0:00:37]} 26. Nxe3 {[%emt 0:00:04]} Nxd4 {[%emt 0:00:18]} 27. Ba2+ {[%emt 0:00:04]} Be6 {[%emt 0:00:57]} 28. Nxf5 {[%emt 0:00:49]} Rd8 {[%emt 0:00:56]} 29. Rd1 {[%emt 0:01:45]} Bxa2 {[%emt 0:00:31]} 30. Rxd4 {[%emt 0:00:28]} Re8 {[%emt 0:01:28]} 31. Re4 {[%emt 0:01:30]} Bb1 {[%emt 0:00:37]} 32. Nd6 {[%emt 0:00:02]} Bxe4 {[%emt 0:01:59]} 33. Nxe8 {[%emt 0:00:04]} Kf8 {[%emt 0:02:17]} 34. Nc7 {[%emt 0:00:22]} Bb7 {[%emt 0:00:24]} 35. Ne6+ {[%emt 0:00:03]} Ke7 {[%emt 0:02:05]} 36. Nc5 {[%emt 0:03:17]} Bc6 {[%emt 0:02:53]} 37. Kf2 {[%emt 0:00:24]} Kf7 {[%emt 0:00:32]} 38. g4 {[%emt 0:01:42]} Kg6 {[%emt 0:00:25]} 39. Kg3 {[%emt 0:01:00]} Kf7 {[%emt 0:02:09]} 40. Kf4 {[%emt 0:00:05]} g6 {[%emt 0:00:17]} 41. Nxa6 {[%emt 0:00:39]} Ke6 {[%emt 0:00:23]} 42. Nc5+ {[%emt 0:00:32]} Kd5 {[%emt 0:00:54]} 43. e6 {[%emt 0:00:02]} h6 {[%emt 0:00:43]} 44. h4 {[%emt 0:00:18]} Kd6 {[%emt 0:05:51]} 45. Nb3 {[%emt 0:10:46]} Be8 {[%emt 0:02:37]} 46. Nd4 {[%emt 0:01:14]} Kd5 {[%emt 0:00:30]} 47. Ke3 {[%emt 0:00:03]} Ke5 {[%emt 0:00:44]} 48. Kd3 {[%emt 0:00:15]} Kd5 {[%emt 0:01:47]} 49. Kc3 {[%emt 0:00:45]} Ke5 {[%emt 0:00:19]} 50. a4 {[%emt 0:00:12]} bxa4 {[%emt 0:00:11]} 51. b5 {[%emt 0:00:03]} Bxb5 {[%emt 0:07:13]} 52. Nxb5 {[%emt 0:00:13]} Kxe6 {[%emt 0:00:42]} 53. Kd4 {[%emt 0:00:06]} Kf6 {[%emt 0:01:46]} 54. Kd5 {[%emt 0:00:55]} h5 {[%emt 0:00:18]} 55. gxh5 {[%emt 0:00:42]} gxh5 {[%emt 0:00:21]} 56. Ke4 {[%emt 0:00:07]} Ke6 {[%emt 0:02:23]} 57. Kf4 {[%emt 0:00:17]} Kf6 {[%emt 0:00:02]} 58. Na3 {[%emt 0:00:07]} Ke6 {[%emt 0:01:15]} 59. Kg5 {[%emt 0:00:53]} Kd5 {[%emt 0:00:01]} 60. Kxh5 {[%emt 0:00:10]} Kc5 {[%emt 0:29:01]} 61. Kg5 {[%emt 0:00:47]} Kb4 {[%emt 0:00:00]} 62. h5 {[%emt 0:01:58]} Kxa3 {[%emt 0:00:00]} 63. h6 {[%emt 0:00:05]} Ka2 {[%emt 0:00:00]} 64. h7 {[%emt 0:00:10]} a3 {[%emt 0:00:00]} 65. h8=Q {[%emt 0:00:05]} Kb1 {[%emt 0:00:00]} 66. Qh1+ {[%emt 0:00:12]} Kb2 {[%emt 0:00:00]} 67. Qg2+ {[%emt 0:00:04]} Kb1 {[%emt 0:00:00]} 68. Qf1+ {[%emt 0:01:03]} Kb2 {[%emt 0:00:00]} 69. Qf2+ {[%emt 0:00:13]} Kb1 {[%emt 0:00:00]} 70. Qe1+ {[%emt 0:00:07]} Kb2 {[%emt 0:00:00]} 71. Qb4+ {[%emt 0:00:08]} 1-0

[Event "FIDE WCCC Open-10 2024"]
[Site "Montesilvano"]
[Date "2024.11.18"]
[Round "4.36"]
[White "Gusev, Daniil Den"]
[Black "Lenkov, Stanislav"]
[Result "1-0"]
[ECO "B43"]
[WhiteElo "1863"]
[BlackElo "1693"]
[Annotator "NA RC"]
[PlyCount "105"]
[EventDate "2024.11.18"]
[EventType "swiss"]
[EventCountry "ITA"]
[SourceTitle "playchess.com"]
[Source "ChessBase"]
[SourceQuality "1"]
[TimeControl "5400+30"]

1. e4 {[%emt 0:00:01]} c5 {[%emt 0:00:23]} 2. Nf3 {[%emt 0:00:17]} a6 {[%emt 0:00:24]} 3. Nc3 {[%emt 0:00:43]} b5 {[%emt 0:01:08]} 4. d4 {[%emt 0:00:45]} cxd4 {[%emt 0:01:12]} 5. Nxd4 {[%emt 0:01:26]} e6 {[%emt 0:00:38]} 6. g3 {[%emt 0:01:28]} Bb7 {[%emt 0:01:23]} 7. Bg2 {[%emt 0:00:34]} Nf6 {[%emt 0:00:55]} 8. a3 {[%emt 0:04:10]} Nc6 {[%emt 0:05:38]} 9. e5 {[%emt 0:04:23]} Qb6 {[%emt 0:05:09]} 10. Nxc6 {[%emt 0:04:33]} Bxc6 {[%emt 0:00:14]} 11. Bxc6 {[%emt 0:00:37]} Qxc6 {[%emt 0:00:04]} 12. O-O {[%emt 0:00:25]} Ne4 {[%emt 0:00:55]} 13. Nxe4 {[%emt 0:01:54]} Qxe4 {[%emt 0:01:37]} 14. Re1 {[%emt 0:01:20]} Qc6 {[%emt 0:01:24]} 15. Bf4 {[%emt 0:06:26]} Bc5 {[%emt 0:02:32]} 16. Qg4 {[%emt 0:02:32]} Kf8 {[%emt 0:03:33]} 17. Rad1 {[%emt 0:01:52]} h5 {[%emt 0:02:19]} 18. Qh3 {[%emt 0:05:40]} Qf3 {[%emt 0:02:38]} 19. Qg2 {[%emt 0:00:14]} Qxg2+ {[%emt 0:01:04]} 20. Kxg2 {[%emt 0:00:38]} Ke7 {[%emt 0:00:48]} 21. Rd3 {[%emt 0:03:59]} a5 {[%emt 0:02:30]} 22. Red1 {[%emt 0:01:02]} Rhd8 {[%emt 0:02:13]} 23. h4 {[%emt 0:04:40]} Ra6 {[%emt 0:03:04]} 24. Rc3 {[%emt 0:02:37]} Rc6 {[%emt 0:03:13]} 25. b4 {[%emt 0:01:23]} axb4 {[%emt 0:03:49]} 26. axb4 {[%emt 0:00:24]} Bb6 {[%emt 0:01:14]} 27. Rxc6 {[%emt 0:05:51]} dxc6 {[%emt 0:00:15]} 28. Ra1 {[%emt 0:14:15]} Bd4 {[%emt 0:03:27]} 29. Ra6 {[%emt 0:00:07]} Kd7 {[%emt 0:04:46]} 30. Ra3 {[%emt 0:06:52]} Kc7 {[%emt 0:02:41]} 31. Rd3 {[%emt 0:05:50]} Bb2 {[%emt 0:03:14]} 32. Rb3 {[%emt 0:02:39]} Bd4 {[%emt 0:00:33]} 33. Kf3 {[%emt 0:00:11]} Rd5 {[%emt 0:00:24]} 34. Rd3 {[%emt 0:01:37]} Bb2 {[%emt 0:05:17]} 35. Ke4 {[%emt 0:05:41]} Rxd3 {[%emt 0:04:40]} 36. Kxd3 {[%emt 0:00:18]} c5 {[%emt 0:00:11]} 37. c4 {[%emt 0:03:14]} Kc6 {[%emt 0:07:09]} 38. cxb5+ {[%emt 0:00:55]} Kxb5 {[%emt 0:00:22]} 39. bxc5 {[%emt 0:00:07]} Kxc5 {[%emt 0:00:16]} 40. Ke4 {[%emt 0:00:03]} Bd4 {[%emt 0:01:05]} 41. f3 {[%emt 0:03:33]} Bf2 {[%emt 0:01:07]} 42. Be3+ {[%emt 0:00:10]} Bxe3 {[%emt 0:00:22]} 43. Kxe3 {[%emt 0:00:03]} Kd5 {[%emt 0:07:18]} 44. Kf4 {[%emt 0:00:11]} Kd4 {[%emt 0:02:45]} 45. g4 {[%emt 0:00:30]} g5+ {[%emt 0:08:56]} 46. Kxg5 {[%emt 0:00:18]} hxg4 {[%emt 0:00:16]} 47. fxg4 {[%emt 0:00:08]} Kxe5 {[%emt 0:01:02]} 48. h5 {[%emt 0:00:05]} f5 {[%emt 0:00:33]} 49. gxf5 {[%emt 0:00:48]} exf5 {[%emt 0:00:04]} 50. h6 {[%emt 0:00:04]} f4 {[%emt 0:00:19]} 51. h7 {[%emt 0:00:02]} f3 {[%emt 0:00:22]} 52. h8=Q+ {[%emt 0:00:07]} Ke4 {[%emt 0:00:16]} 53. Qh3 {[%emt 0:00:04]} 1-0

[Event "FIDE WCCC Open-10 2024"]
[Site "Montesilvano"]
[Date "2024.11.18"]
[Round "4.37"]
[White "Garcia Tanjala, Marko"]
[Black "Kazimzade, Mahammad"]
[Result "0-1"]
[ECO "C77"]
[WhiteElo "1833"]
[BlackElo "1687"]
[Annotator "NA RC"]
[PlyCount "54"]
[EventDate "2024.11.18"]
[EventType "swiss"]
[EventCountry "ITA"]
[SourceTitle "playchess.com"]
[Source "ChessBase"]
[SourceQuality "1"]
[TimeControl "5400+30"]

1. e4 {[%emt 0:00:02]} e5 {[%emt 0:00:05]} 2. Nf3 {[%emt 0:00:10]} Nc6 {[%emt 0:00:07]} 3. Bb5 {[%emt 0:00:07]} a6 {[%emt 0:00:07]} 4. Ba4 {[%emt 0:00:10]} Nf6 {[%emt 0:00:22]} 5. Bxc6 {[%emt 0:00:21]} dxc6 {[%emt 0:00:09]} 6. Nc3 {[%emt 0:00:20]} Bg4 {[%emt 0:01:11]} 7. h3 {[%emt 0:00:23]} Bh5 {[%emt 0:00:07]} 8. g4 {[%emt 0:00:28]} Bg6 {[%emt 0:00:33]} 9. Nxe5 {[%emt 0:00:10]} Nxe4 {[%emt 0:00:59]} 10. Nxg6 {[%emt 0:00:15]} Nxc3 {[%emt 0:00:06]} 11. dxc3 {[%emt 0:00:20]} Qxd1+ {[%emt 0:00:35]} 12. Kxd1 {[%emt 0:00:49]} O-O-O+ {[%emt 0:00:17]} 13. Ke2 {[%emt 0:00:14]} hxg6 {[%emt 0:00:07]} 14. Be3 {[%emt 0:04:08]} Bd6 {[%emt 0:02:00]} 15. f4 {[%emt 0:02:57]} Rde8 {[%emt 0:01:44]} 16. Kf3 {[%emt 0:01:39]} Re6 {[%emt 0:03:18]} 17. Bd4 {[%emt 0:03:56]} Rhe8 {[%emt 0:02:06]} 18. Rhf1 {[%emt 0:09:45]} f6 {[%emt 0:02:40]} 19. f5 {[%emt 0:02:13]} gxf5 {[%emt 0:01:44]} 20. gxf5 {[%emt 0:00:21]} Re4 {[%emt 0:00:22]} 21. Kg2 {[%emt 0:05:13]} Re2+ {[%emt 0:00:24]} 22. Kf3 {[%emt 0:03:15]} Rxc2 {[%emt 0:00:26]} 23. Rf2 {[%emt 0:00:31]} Rxf2+ {[%emt 0:00:24]} 24. Bxf2 {[%emt 0:04:48]} Re5 {[%emt 0:00:09]} 25. Bd4 {[%emt 0:03:19]} Rxf5+ {[%emt 0:00:22]} 26. Kg4 {[%emt 0:00:08]} Rg5+ {[%emt 0:00:11]} 27. Kh4 {[%emt 0:00:18]} Bg3# {[%emt 0:00:07]} 0-1

[Event "FIDE WCCC Open-10 2024"]
[Site "Montesilvano"]
[Date "2024.11.18"]
[Round "4.38"]
[White "Bulat, Mansur"]
[Black "Guirado Lara, Pablo"]
[Result "1/2-1/2"]
[ECO "A56"]
[WhiteElo "1610"]
[BlackElo "1832"]
[Annotator "NA RC"]
[PlyCount "100"]
[EventDate "2024.11.18"]
[EventType "swiss"]
[EventCountry "ITA"]
[SourceTitle "playchess.com"]
[Source "ChessBase"]
[SourceQuality "1"]
[TimeControl "5400+30"]

1. d4 {[%emt 0:00:08]} Nf6 {[%emt 0:00:04]} 2. c4 {[%emt 0:00:43]} c5 {[%emt 0:00:13]} 3. dxc5 {[%emt 0:03:19]} Qa5+ {[%emt 0:00:07]} 4. Nc3 {[%emt 0:01:30]} Qxc5 {[%emt 0:00:45]} 5. e3 {[%emt 0:01:38]} g6 {[%emt 0:05:10]} 6. Be2 {[%emt 0:05:08]} Bg7 {[%emt 0:03:14]} 7. Nf3 {[%emt 0:03:16]} d6 {[%emt 0:05:32]} 8. O-O {[%emt 0:07:53]} O-O {[%emt 0:03:41]} 9. Nd4 {[%emt 0:05:59]} Nc6 {[%emt 0:09:35]} 10. Nxc6 {[%emt 0:05:23]} bxc6 {[%emt 0:02:26]} 11. b3 {[%emt 0:04:23]} Ng4 {[%emt 0:27:46]} 12. Bxg4 {[%emt 0:06:26]} Bxc3 {[%emt 0:00:13]} 13. Rb1 {[%emt 0:00:06]} a5 {[%emt 0:06:28]} 14. Bxc8 {[%emt 0:05:58]} Rfxc8 {[%emt 0:00:07]} 15. Qc2 {[%emt 0:01:40]} Bg7 {[%emt 0:00:53]} 16. Bb2 {[%emt 0:04:30]} Rcb8 {[%emt 0:03:48]} 17. Bxg7 {[%emt 0:03:22]} Kxg7 {[%emt 0:00:02]} 18. Qe4 {[%emt 0:02:44]} Rb7 {[%emt 0:05:16]} 19. Rb2 {[%emt 0:10:39]} Rab8 {[%emt 0:08:41]} 20. Rfb1 {[%emt 0:02:27]} a4 {[%emt 0:01:57]} 21. Qd4+ {[%emt 0:02:57]} Qxd4 {[%emt 0:00:07]} 22. exd4 {[%emt 0:00:04]} axb3 {[%emt 0:00:42]} 23. axb3 {[%emt 0:00:41]} Rb4 {[%emt 0:00:05]} 24. Kf1 {[%emt 0:03:13]} d5 {[%emt 0:00:10]} 25. cxd5 {[%emt 0:00:17]} cxd5 {[%emt 0:00:01]} 26. Rd1 {[%emt 0:00:43]} Rxb3 {[%emt 0:00:10]} 27. Rbd2 {[%emt 0:00:20]} Rb1 {[%emt 0:00:27]} 28. Ke1 {[%emt 0:00:07]} Kf6 {[%emt 0:00:47]} 29. f3 {[%emt 0:00:34]} R8b2 {[%emt 0:02:20]} 30. Rxb1 {[%emt 0:00:22]} Rxb1+ {[%emt 0:00:08]} 31. Kf2 {[%emt 0:00:24]} Ke6 {[%emt 0:00:34]} 32. Kg3 {[%emt 0:01:22]} Kd6 {[%emt 0:01:42]} 33. Kf4 {[%emt 0:00:46]} h6 {[%emt 0:00:44]} 34. Ra2 {[%emt 0:01:56]} Rb6 {[%emt 0:02:28]} 35. h4 {[%emt 0:02:38]} Ke6 {[%emt 0:01:42]} 36. g4 {[%emt 0:01:37]} f6 {[%emt 0:01:33]} 37. g5 {[%emt 0:03:17]} hxg5+ {[%emt 0:00:48]} 38. hxg5 {[%emt 0:00:07]} Kd6 {[%emt 0:01:10]} 39. gxf6 {[%emt 0:01:56]} exf6 {[%emt 0:00:01]} 40. Rg2 {[%emt 0:00:12]} g5+ {[%emt 0:02:15]} 41. Kf5 {[%emt 0:00:07]} Rb3 {[%emt 0:02:00]} 42. Kxf6 {[%emt 0:02:33]} Rxf3+ {[%emt 0:00:06]} 43. Kxg5 {[%emt 0:00:04]} Rd3 {[%emt 0:01:28]} 44. Rg4 {[%emt 0:00:59]} Kc6 {[%emt 0:01:28]} 45. Kf5 {[%emt 0:00:40]} Re3 {[%emt 0:00:13]} 46. Rg1 {[%emt 0:01:55]} Re4 {[%emt 0:00:31]} 47. Rg4 {[%emt 0:00:45]} Re3 {[%emt 0:00:21]} 48. Rg1 {[%emt 0:00:06]} Re4 {[%emt 0:01:18]} 49. Rg4 {[%emt 0:00:04]} Rxg4 {[%emt 0:00:19]} 50. Kxg4 {[%emt 0:00:04]} Kd6 {[%emt 0:01:11]} 1/2-1/2

[Event "FIDE WCCC Open-10 2024"]
[Site "Montesilvano"]
[Date "2024.11.18"]
[Round "4.39"]
[White "Buklaho, Ignacy"]
[Black "Friscic, Jakov"]
[Result "1-0"]
[ECO "B15"]
[WhiteElo "1822"]
[BlackElo "1685"]
[Annotator "NA RC"]
[PlyCount "41"]
[EventDate "2024.11.18"]
[EventType "swiss"]
[EventCountry "ITA"]
[SourceTitle "playchess.com"]
[Source "ChessBase"]
[SourceQuality "1"]
[TimeControl "5400+30"]

1. e4 {[%emt 0:00:13]} c6 {[%emt 0:00:04]} 2. d4 {[%emt 0:00:07]} d5 {[%emt 0:00:06]} 3. Nd2 {[%emt 0:00:11]} dxe4 {[%emt 0:00:04]} 4. Nxe4 {[%emt 0:00:06]} Nf6 {[%emt 0:00:06]} 5. Nxf6+ {[%emt 0:00:11]} exf6 {[%emt 0:00:00]} 6. c3 {[%emt 0:00:11]} Bd6 {[%emt 0:00:05]} 7. Bd3 {[%emt 0:00:23]} O-O {[%emt 0:00:06]} 8. Ne2 {[%emt 0:00:06]} Re8 {[%emt 0:00:11]} 9. O-O {[%emt 0:00:13]} Nd7 {[%emt 0:00:05]} 10. Ng3 {[%emt 0:00:27]} Nf8 {[%emt 0:00:33]} 11. f4 {[%emt 0:00:07]} Qc7 {[%emt 0:07:33]} 12. f5 {[%emt 0:08:13]} b6 {[%emt 0:06:53]} 13. Nh5 {[%emt 0:15:07]} Nd7 {[%emt 0:08:41]} 14. Qg4 {[%emt 0:11:02]} Bf8 {[%emt 0:05:10]} 15. Nxg7 {[%emt 0:00:23]} Bxg7 {[%emt 0:00:46]} 16. Bh6 {[%emt 0:00:10]} Kf8 {[%emt 0:00:07]} 17. Qxg7+ {[%emt 0:00:32]} Ke7 {[%emt 0:00:02]} 18. Rfe1+ {[%emt 0:00:20]} Kd8 {[%emt 0:00:42]} 19. Rxe8+ {[%emt 0:00:09]} Kxe8 {[%emt 0:00:20]} 20. Re1+ {[%emt 0:00:07]} Kd8 {[%emt 0:00:22]} 21. Qg8+ {[%emt 0:00:08]} 1-0

[Event "FIDE WCCC Open-10 2024"]
[Site "Montesilvano"]
[Date "2024.11.18"]
[Round "4.40"]
[White "Nikitakis, Michail"]
[Black "Della Penna, Leonardo"]
[Result "1-0"]
[ECO "B90"]
[WhiteElo "1818"]
[BlackElo "1675"]
[Annotator "NA RC"]
[PlyCount "70"]
[EventDate "2024.11.18"]
[EventType "swiss"]
[EventCountry "ITA"]
[SourceTitle "playchess.com"]
[Source "ChessBase"]
[SourceQuality "1"]
[TimeControl "5400+30"]

1. e4 {[%emt 0:00:03]} c5 {[%emt 0:00:08]} 2. Nf3 {[%emt 0:00:05]} d6 {[%emt 0:00:16]} 3. d4 {[%emt 0:00:08]} cxd4 {[%emt 0:00:07]} 4. Nxd4 {[%emt 0:00:08]} Nf6 {[%emt 0:00:06]} 5. Nc3 {[%emt 0:00:08]} a6 {[%emt 0:00:16]} 6. f3 {[%emt 0:00:15]} e5 {[%emt 0:00:22]} 7. Nb3 {[%emt 0:00:07]} Be6 {[%emt 0:00:12]} 8. Be3 {[%emt 0:00:06]} h5 {[%emt 0:00:12]} 9. Qd2 {[%emt 0:02:14]} Nbd7 {[%emt 0:00:18]} 10. O-O-O {[%emt 0:04:18]} b5 {[%emt 0:02:29]} 11. Qf2 {[%emt 0:02:41]} Rc8 {[%emt 0:05:24]} 12. Kb1 {[%emt 0:09:40]} Qc7 {[%emt 0:09:54]} 13. Nd5 {[%emt 0:20:50]} Nxd5 {[%emt 0:01:49]} 14. exd5 {[%emt 0:00:43]} Bf5 {[%emt 0:00:07]} 15. Bd3 {[%emt 0:02:27]} Bxd3 {[%emt 0:01:25]} 16. Rxd3 {[%emt 0:04:21]} b4 {[%emt 0:00:36]} 17. c3 {[%emt 0:06:03]} Nc5 {[%emt 0:02:58]} 18. Bxc5 {[%emt 0:16:16]} dxc5 {[%emt 0:00:41]} 19. c4 {[%emt 0:02:40]} Bd6 {[%emt 0:01:57]} 20. Nd2 {[%emt 0:05:04]} a5 {[%emt 0:03:30]} 21. Ne4 {[%emt 0:00:45]} f6 {[%emt 0:01:32]} 22. Qg3 {[%emt 0:22:28]} Kf7 {[%emt 0:02:19]} 23. Qh3 {[%emt 0:00:00]} Qe7 {[%emt 0:04:39]} 24. Qe6+ {[%emt 0:00:00]} Qxe6 {[%emt 0:01:01]} 25. dxe6+ {[%emt 0:00:00]} Kxe6 {[%emt 0:00:08]} 26. Rxd6+ {[%emt 0:00:00]} Ke7 {[%emt 0:00:11]} 27. Rhd1 {[%emt 0:00:00]} Rc7 {[%emt 0:01:05]} 28. R6d5 {[%emt 0:00:00]} Rhc8 {[%emt 0:01:07]} 29. Nd6 {[%emt 0:00:00]} Rg8 {[%emt 0:01:06]} 30. Nb5 {[%emt 0:00:00]} Rcc8 {[%emt 0:02:12]} 31. Rd7+ {[%emt 0:00:00]} Ke8 {[%emt 0:00:22]} 32. Ra7 {[%emt 0:00:00]} Rb8 {[%emt 0:01:23]} 33. Rdd7 {[%emt 0:00:00]} Kf8 {[%emt 0:00:50]} 34. Rf7+ {[%emt 0:00:00]} Ke8 {[%emt 0:00:11]} 35. Nd6+ {[%emt 0:00:00]} Kd8 {[%emt 0:57:07]} 1-0

[Event "FIDE WCCC Open-10 2024"]
[Site "Montesilvano"]
[Date "2024.11.18"]
[Round "4.41"]
[White "Zhang, Oscar Y"]
[Black "Gomez Silva, Maximiliano"]
[Result "1-0"]
[ECO "B17"]
[WhiteElo "1817"]
[BlackElo "1643"]
[Annotator "NA RC"]
[PlyCount "81"]
[EventDate "2024.11.18"]
[EventType "swiss"]
[EventCountry "ITA"]
[SourceTitle "playchess.com"]
[Source "ChessBase"]
[SourceQuality "1"]
[TimeControl "5400+30"]

1. e4 {[%emt 0:00:03]} c6 {[%emt 0:00:57]} 2. d4 {[%emt 0:00:09]} d5 {[%emt 0:01:03]} 3. Nc3 {[%emt 0:00:07]} dxe4 {[%emt 0:00:48]} 4. Nxe4 {[%emt 0:00:07]} Nd7 {[%emt 0:00:59]} 5. Nf3 {[%emt 0:01:32]} Ngf6 {[%emt 0:01:56]} 6. Ng3 {[%emt 0:05:46]} e6 {[%emt 0:02:23]} 7. Bd3 {[%emt 0:00:29]} Bd6 {[%emt 0:03:23]} 8. Bd2 {[%emt 0:03:15]} O-O {[%emt 0:03:28]} 9. c3 {[%emt 0:03:07]} e5 {[%emt 0:03:58]} 10. O-O {[%emt 0:08:16]} c5 {[%emt 0:11:09]} 11. Re1 {[%emt 0:10:45]} exd4 {[%emt 0:08:25]} 12. Nf5 {[%emt 0:01:53]} Nb6 {[%emt 0:09:37]} 13. cxd4 {[%emt 0:13:15]} cxd4 {[%emt 0:00:45]} 14. N3xd4 {[%emt 0:03:43]} Bxf5 {[%emt 0:02:10]} 15. Nxf5 {[%emt 0:04:24]} Bxh2+ {[%emt 0:02:28]} 16. Kxh2 {[%emt 0:04:34]} Qxd3 {[%emt 0:00:10]} 17. Ne7+ {[%emt 0:10:12]} Kh8 {[%emt 0:00:31]} 18. Bc3 {[%emt 0:00:10]} Qxd1 {[%emt 0:08:20]} 19. Rc1 {[%emt 0:28:13]} Qxe1 20. Rxe1 {[%emt 0:00:00]} Rad8 {[%emt 0:04:27]} 21. b3 {[%emt 0:01:00]} Rd1 {[%emt 0:05:32]} 22. Rxd1 {[%emt 0:00:00]} Re8 {[%emt 0:05:42]} 23. Nf5 {[%emt 0:00:00]} Nbd5 {[%emt 0:02:51]} 24. Ba1 {[%emt 0:00:00]} Re6 {[%emt 0:05:48]} 25. f3 {[%emt 0:00:00]} Ne7 {[%emt 0:07:22]} 26. Bxf6 {[%emt 0:00:00]} gxf6 {[%emt 0:00:18]} 27. Rd8+ {[%emt 0:00:00]} Ng8 {[%emt 0:00:56]} 28. Nh6 {[%emt 0:00:00]} Kg7 {[%emt 0:00:18]} 29. Nxg8 {[%emt 0:00:00]} b6 {[%emt 0:02:04]} 30. Kg3 {[%emt 0:00:00]} a5 {[%emt 0:01:07]} 31. Kf2 {[%emt 0:00:00]} Re5 {[%emt 0:01:01]} 32. Kg3 {[%emt 0:00:00]} Re6 {[%emt 0:00:08]} 33. Kg4 {[%emt 0:00:00]} Re5 {[%emt 0:00:30]} 34. g3 {[%emt 0:00:00]} Re1 {[%emt 0:06:56]} 35. f4 {[%emt 0:00:00]} Re6 {[%emt 0:00:00]} 36. Kf5 {[%emt 0:00:14]} b5 {[%emt 0:00:00]} 37. a3 {[%emt 0:00:12]} b4 {[%emt 0:00:00]} 38. a4 {[%emt 0:00:32]} h5 {[%emt 0:00:00]} 39. Ra8 {[%emt 0:00:25]} Re3 {[%emt 0:01:48]} 40. Nxf6 {[%emt 0:00:36]} Rxb3 {[%emt 0:00:20]} 41. Nxh5+ {[%emt 0:08:01]} 1-0